[Event "December 5 Late 2023"]
[Site "https://www.chess.com"]
[Date "2023.12.05"]
[Round "3"]
[White "Jing, Andrew"]
[Black "Bayo Milagro, Alvaro"]
[Result "1-0"]
[Board "127"]
[TimeControl "180+1"]
[WhiteFideId "30984076"]
[BlackFideId "22275240"]
[WhiteElo "2206"]
[BlackElo "2535"]
[WhiteTeam "USA"]
[BlackTeam "ESP"]
[WhiteClock "0:00:50"]
[BlackClock "0:00:04"]

1. d4 {[%clk 0:03:00]}  d5 {[%clk 0:03:00]} 2. c4 {[%clk 0:02:58]}  e6 {[%clk 0:03:00]} 3. Nf3 {[%clk 0:02:57]}  Nf6 {[%clk 0:03:00]} 4. g3 {[%clk 0:02:54]}  Bb4+ {[%clk 0:02:56]} 5. Nbd2 {[%clk 0:02:53]}  O-O {[%clk 0:02:56]} 6. Bg2 {[%clk 0:02:53]}  b6 {[%clk 0:02:56]} 7. O-O {[%clk 0:02:53]}  Bb7 {[%clk 0:02:56]} 8. a3 {[%clk 0:02:50]}  Be7 {[%clk 0:02:53]} 9. cxd5 {[%clk 0:02:47]}  Bxd5 {[%clk 0:02:51]} 10. Re1 {[%clk 0:02:44]}  Ne4 {[%clk 0:02:51]} 11. Nf1 {[%clk 0:02:35]}  c5 {[%clk 0:02:45]} 12. Ne3 {[%clk 0:02:34]}  Bb7 {[%clk 0:02:41]} 13. dxc5 {[%clk 0:02:34]}  Bxc5 {[%clk 0:02:38]} 14. b4 {[%clk 0:02:33]}  Be7 {[%clk 0:02:33]} 15. Bb2 {[%clk 0:02:28]}  Bf6 {[%clk 0:02:33]} 16. Ne5 {[%clk 0:02:28]}  Bxe5 {[%clk 0:01:57]} 17. Bxe5 {[%clk 0:02:19]}  Nd7 {[%clk 0:01:57]} 18. Bb2 {[%clk 0:02:18]}  Rb8 {[%clk 0:01:53]} 19. Qd3 {[%clk 0:02:14]}  Ndf6 {[%clk 0:01:46]} 20. Red1 {[%clk 0:02:08]}  Qxd3 {[%clk 0:01:44]} 21. Rxd3 {[%clk 0:02:04]}  Ba6 {[%clk 0:01:40]} 22. Rd4 {[%clk 0:02:00]}  Bb7 {[%clk 0:01:20]} 23. f3 {[%clk 0:01:56]}  e5 {[%clk 0:01:16]} 24. Rdd1 {[%clk 0:01:52]}  Ng5 {[%clk 0:01:14]} 25. Bxe5 {[%clk 0:01:52]}  Rbe8 {[%clk 0:01:07]} 26. Bxf6 {[%clk 0:01:51]}  gxf6 {[%clk 0:01:06]} 27. Ng4 {[%clk 0:01:50]}  Rxe2 {[%clk 0:01:02]} 28. Nxf6+ {[%clk 0:01:49]}  Kg7 {[%clk 0:01:02]} 29. Nh5+ {[%clk 0:01:47]}  Kh6 {[%clk 0:00:58]} 30. Nf4 {[%clk 0:01:47]}  Rb2 {[%clk 0:00:53]} 31. Rd6+ {[%clk 0:01:42]}  Kg7 {[%clk 0:00:50]} 32. Rd3 {[%clk 0:01:37]}  Rc8 {[%clk 0:00:46]} 33. h4 {[%clk 0:01:36]}  Ba6 {[%clk 0:00:36]} 34. Rd7 {[%clk 0:01:21]}  h6 {[%clk 0:00:24]} 35. hxg5 {[%clk 0:01:12]}  hxg5 {[%clk 0:00:25]} 36. Nd3 {[%clk 0:01:11]}  Bxd3 {[%clk 0:00:23]} 37. Rxd3 {[%clk 0:01:11]}  Rcc2 {[%clk 0:00:24]} 38. Bf1 {[%clk 0:01:10]}  f5 {[%clk 0:00:19]} 39. Rd5 {[%clk 0:01:10]}  Kf6 {[%clk 0:00:19]} 40. Rd3 {[%clk 0:01:05]}  f4 {[%clk 0:00:19]} 41. g4 {[%clk 0:01:05]}  a5 {[%clk 0:00:18]} 42. bxa5 {[%clk 0:01:04]}  bxa5 {[%clk 0:00:19]} 43. a4 {[%clk 0:01:04]}  Rh2 {[%clk 0:00:16]} 44. Raa3 {[%clk 0:01:04]}  Rh4 {[%clk 0:00:15]} 45. Rab3 {[%clk 0:01:04]}  Rc2 {[%clk 0:00:15]} 46. Rb5 {[%clk 0:01:03]}  Rc1 {[%clk 0:00:13]} 47. Rxa5 {[%clk 0:00:53]}  Rh8 {[%clk 0:00:13]} 48. Rf5+ {[%clk 0:00:52]}  Ke6 {[%clk 0:00:11]} 49. Rfd5 {[%clk 0:00:52]}  Rb8 {[%clk 0:00:11]} 50. Rd1 {[%clk 0:00:52]}  Rc3 {[%clk 0:00:11]} 51. R5d3 {[%clk 0:00:51]}  Rc2 {[%clk 0:00:12]} 52. Ra3 {[%clk 0:00:50]}  Rbb2 {[%clk 0:00:04]} 53. a5 {[%clk 0:00:50]} 1-0

[Event "December 5 Late 2023"]
[Site "https://www.chess.com"]
[Date "2023.12.05"]
[Round "3"]
[White "Cervantes Landeiro, Thalia"]
[Black "Luxama, Jacques Muller"]
[Result "1-0"]
[Board "128"]
[TimeControl "180+1"]
[WhiteFideId "3520498"]
[BlackFideId "11900113"]
[WhiteElo "2533"]
[BlackElo "2214"]
[WhiteTeam "USA"]
[BlackTeam "HAI"]
[WhiteClock "0:00:03"]
[BlackClock "0:00:00"]

1. d4 {[%clk 0:03:00]}  Nf6 {[%clk 0:02:57]} 2. c4 {[%clk 0:03:00]}  e6 {[%clk 0:02:57]} 3. Nf3 {[%clk 0:03:00]}  d5 {[%clk 0:02:57]} 4. Nc3 {[%clk 0:03:00]}  c6 {[%clk 0:02:56]} 5. e3 {[%clk 0:02:57]}  Nbd7 {[%clk 0:02:55]} 6. Qc2 {[%clk 0:02:57]}  Bd6 {[%clk 0:02:55]} 7. Bd3 {[%clk 0:02:57]}  O-O {[%clk 0:02:54]} 8. O-O {[%clk 0:02:56]}  Qe7 {[%clk 0:02:54]} 9. e4 {[%clk 0:02:57]}  dxe4 {[%clk 0:02:54]} 10. Nxe4 {[%clk 0:02:57]}  Nxe4 {[%clk 0:02:53]} 11. Bxe4 {[%clk 0:02:58]}  h6 {[%clk 0:02:52]} 12. h3 {[%clk 0:02:49]}  Nf6 {[%clk 0:02:52]} 13. Bd3 {[%clk 0:02:49]}  c5 {[%clk 0:02:50]} 14. Be3 {[%clk 0:02:47]}  cxd4 {[%clk 0:02:50]} 15. Nxd4 {[%clk 0:02:48]}  a6 {[%clk 0:02:49]} 16. Rfe1 {[%clk 0:02:45]}  Qc7 {[%clk 0:02:49]} 17. a3 {[%clk 0:02:42]}  Bf4 {[%clk 0:02:40]} 18. b4 {[%clk 0:02:32]}  Rd8 {[%clk 0:02:40]} 19. Rad1 {[%clk 0:02:28]}  Bxe3 {[%clk 0:02:39]} 20. fxe3 {[%clk 0:02:19]}  Qg3 {[%clk 0:02:24]} 21. Qf2 {[%clk 0:02:03]}  Qxf2+ {[%clk 0:02:07]} 22. Kxf2 {[%clk 0:02:04]}  Bd7 {[%clk 0:02:07]} 23. c5 {[%clk 0:02:03]}  Ba4 {[%clk 0:02:07]} 24. Rc1 {[%clk 0:02:03]}  e5 {[%clk 0:02:07]} 25. Bc2 {[%clk 0:02:00]}  exd4 {[%clk 0:02:01]} 26. Bxa4 {[%clk 0:01:59]}  dxe3+ {[%clk 0:02:01]} 27. Rxe3 {[%clk 0:01:55]}  Rd2+ {[%clk 0:02:01]} 28. Re2 {[%clk 0:01:49]}  Rad8 {[%clk 0:02:01]} 29. Rc2 {[%clk 0:01:38]}  Ne4+ {[%clk 0:01:56]} 30. Ke3 {[%clk 0:01:28]}  R2d3+ {[%clk 0:01:00]} 31. Kxe4 {[%clk 0:01:23]}  R8d4+ {[%clk 0:01:00]} 32. Ke5 {[%clk 0:01:23]}  Rd5+ {[%clk 0:00:53]} 33. Kf4 {[%clk 0:01:15]}  g5+ {[%clk 0:00:53]} 34. Kg4 {[%clk 0:01:09]}  R5d4+ {[%clk 0:00:45]} 35. Kf5 {[%clk 0:01:00]}  Rxa3 {[%clk 0:00:19]} 36. Be8 {[%clk 0:00:29]}  Kg7 {[%clk 0:00:18]} 37. Ke5 {[%clk 0:00:21]}  Rad3 {[%clk 0:00:16]} 38. c6 {[%clk 0:00:03]}  Rd5+ {[%clk 0:00:13]} 39. Ke4 {[%clk 0:00:03]}  f6 {[%clk 0:00:09]} 40. g4 {[%clk 0:00:02]}  R5d4+ {[%clk 0:00:09]} 41. Kf5 {[%clk 0:00:01]}  Rd5+ {[%clk 0:00:07]} 42. Ke6 {[%clk 0:00:01]}  bxc6 {[%clk 0:00:03]} 43. Ke7 {[%clk 0:00:01]}  Re5+ {[%clk 0:00:02]} 44. Rxe5 {[%clk 0:00:01]}  fxe5 {[%clk 0:00:03]} 45. Rxc6 {[%clk 0:00:01]}  e4 {[%clk 0:00:03]} 46. Rc7 {[%clk 0:00:02]}  e3 {[%clk 0:00:00]} 47. Bc6 {[%clk 0:00:03]} 1-0

[Event "December 5 Late 2023"]
[Site "https://www.chess.com"]
[Date "2023.12.05"]
[Round "3"]
[White "Novikova, Margarita"]
[Black "Kopczynski, Michal"]
[Result "0-1"]
[Board "129"]
[TimeControl "180+1"]
[WhiteFideId "14109689"]
[BlackFideId "1124200"]
[WhiteElo "2130"]
[BlackElo "2531"]
[WhiteTeam "GER"]
[BlackTeam "POL"]
[WhiteClock "0:02:48"]
[BlackClock "0:02:51"]

1. d4 {[%clk 0:02:58]}  Nf6 {[%clk 0:02:59]} 2. Bf4 {[%clk 0:02:59]}  g6 {[%clk 0:03:00]} 3. Nd2 {[%clk 0:02:56]}  Bg7 {[%clk 0:03:00]} 4. h3 {[%clk 0:02:56]}  O-O {[%clk 0:02:59]} 5. Ngf3 {[%clk 0:02:56]}  d6 {[%clk 0:02:58]} 6. e3 {[%clk 0:02:56]}  Nfd7 {[%clk 0:02:57]} 7. c3 {[%clk 0:02:56]}  Nc6 {[%clk 0:02:57]} 8. Bc4 {[%clk 0:02:55]}  e5 {[%clk 0:02:58]} 9. Bg3 {[%clk 0:02:54]}  Kh8 {[%clk 0:02:54]} 10. Ng5 {[%clk 0:02:48]}  Qxg5 {[%clk 0:02:51]} 0-1

[Event "December 5 Late 2023"]
[Site "https://www.chess.com"]
[Date "2023.12.05"]
[Round "3"]
[White "De Souza, Arthur Olintho"]
[Black "Rogov, Matfey"]
[Result "0-1"]
[Board "133"]
[TimeControl "180+1"]
[WhiteFideId "2116200"]
[BlackFideId "44191308"]
[WhiteElo "2041"]
[BlackElo "2520"]
[WhiteTeam "BRA"]
[BlackTeam "RUS"]
[WhiteClock "0:00:52"]
[BlackClock "0:00:15"]

1. e4 {[%clk 0:02:59]}  e6 {[%clk 0:02:58]} 2. Nf3 {[%clk 0:03:00]}  d5 {[%clk 0:02:58]} 3. Nc3 {[%clk 0:03:01]}  Nf6 {[%clk 0:02:56]} 4. e5 {[%clk 0:03:01]}  Nfd7 {[%clk 0:02:57]} 5. d4 {[%clk 0:03:02]}  c5 {[%clk 0:02:57]} 6. dxc5 {[%clk 0:03:03]}  Nc6 {[%clk 0:02:56]} 7. Bf4 {[%clk 0:03:02]}  Bxc5 {[%clk 0:02:55]} 8. Bd3 {[%clk 0:03:02]}  h6 {[%clk 0:02:55]} 9. h4 {[%clk 0:03:00]}  a6 {[%clk 0:02:52]} 10. Rh3 {[%clk 0:02:58]}  Qc7 {[%clk 0:02:46]} 11. Qe2 {[%clk 0:02:53]}  b5 {[%clk 0:02:29]} 12. h5 {[%clk 0:02:50]}  Bb7 {[%clk 0:02:11]} 13. Rg3 {[%clk 0:02:50]}  Bf8 {[%clk 0:02:11]} 14. O-O-O {[%clk 0:02:45]}  b4 {[%clk 0:02:06]} 15. Na4 {[%clk 0:02:45]}  Qa5 {[%clk 0:02:01]} 16. b3 {[%clk 0:02:45]}  Nc5 {[%clk 0:01:36]} 17. Nxc5 {[%clk 0:02:38]}  Bxc5 {[%clk 0:01:36]} 18. Kb1 {[%clk 0:02:30]}  Na7 {[%clk 0:01:16]} 19. Rxg7 {[%clk 0:02:27]}  Nb5 {[%clk 0:01:15]} 20. Bxb5+ {[%clk 0:02:19]}  axb5 {[%clk 0:01:16]} 21. Kc1 {[%clk 0:02:03]}  Rc8 {[%clk 0:00:46]} 22. Kb1 {[%clk 0:01:53]}  Bc6 {[%clk 0:00:31]} 23. Nd4 {[%clk 0:01:36]}  Bxd4 {[%clk 0:00:27]} 24. Rxd4 {[%clk 0:01:36]}  Ra8 {[%clk 0:00:28]} 25. c4 {[%clk 0:01:10]}  bxc4 {[%clk 0:00:16]} 26. bxc4 {[%clk 0:00:56]}  b3 {[%clk 0:00:17]} 27. cxd5 {[%clk 0:00:56]}  bxa2+ {[%clk 0:00:14]} 28. Ka1 {[%clk 0:00:56]}  Qc3+ {[%clk 0:00:14]} 29. Qb2 {[%clk 0:00:56]}  Qxb2+ {[%clk 0:00:14]} 30. Kxb2 {[%clk 0:00:52]}  a1=Q+ {[%clk 0:00:15]} 0-1

[Event "December 5 Late 2023"]
[Site "https://www.chess.com"]
[Date "2023.12.05"]
[Round "3"]
[White "Vargas, Mauricio"]
[Black "Sahakyan, Aleks"]
[Result "0-1"]
[Board "137"]
[TimeControl "180+1"]
[WhiteFideId "4404572"]
[BlackFideId "13316338"]
[WhiteElo "1830"]
[BlackElo "2695"]
[WhiteTeam "COL"]
[BlackTeam "ARM"]
[WhiteClock "0:00:16"]
[BlackClock "0:01:58"]

1. e4 {[%clk 0:03:00]}  Nc6 {[%clk 0:02:55]} 2. f4 {[%clk 0:02:57]}  d5 {[%clk 0:02:53]} 3. e5 {[%clk 0:02:57]}  h5 {[%clk 0:02:52]} 4. Nf3 {[%clk 0:02:57]}  Bg4 {[%clk 0:02:51]} 5. Bb5 {[%clk 0:02:56]}  e6 {[%clk 0:02:51]} 6. h3 {[%clk 0:02:52]}  Bxf3 {[%clk 0:02:51]} 7. Qxf3 {[%clk 0:02:52]}  Ne7 {[%clk 0:02:51]} 8. O-O {[%clk 0:02:50]}  a6 {[%clk 0:02:52]} 9. Bd3 {[%clk 0:02:35]}  Nf5 {[%clk 0:02:44]} 10. Bxf5 {[%clk 0:02:33]}  Nd4 {[%clk 0:02:44]} 11. Qd1 {[%clk 0:02:14]}  Nxf5 {[%clk 0:02:44]} 12. c3 {[%clk 0:02:14]}  c5 {[%clk 0:02:43]} 13. d4 {[%clk 0:02:12]}  cxd4 {[%clk 0:02:43]} 14. cxd4 {[%clk 0:02:12]}  Qb6 {[%clk 0:02:44]} 15. Qa4+ {[%clk 0:01:55]}  Qc6 {[%clk 0:02:36]} 16. Qxc6+ {[%clk 0:01:46]}  bxc6 {[%clk 0:02:36]} 17. Rd1 {[%clk 0:01:46]}  c5 {[%clk 0:02:37]} 18. dxc5 {[%clk 0:01:42]}  Bxc5+ {[%clk 0:02:38]} 19. Kh2 {[%clk 0:01:42]}  h4 {[%clk 0:02:32]} 20. Nc3 {[%clk 0:01:34]}  O-O {[%clk 0:02:30]} 21. b3 {[%clk 0:01:26]}  Bf2 {[%clk 0:02:16]} 22. Ne2 {[%clk 0:01:16]}  Rfc8 {[%clk 0:02:12]} 23. Rf1 {[%clk 0:00:55]}  Bg3+ {[%clk 0:02:06]} 24. Nxg3 {[%clk 0:00:55]}  hxg3+ {[%clk 0:02:06]} 25. Kg1 {[%clk 0:00:53]}  Rc2 {[%clk 0:02:07]} 26. Ba3 {[%clk 0:00:44]}  Nh4 {[%clk 0:01:58]} 27. Rfc1 {[%clk 0:00:31]}  Rxg2+ {[%clk 0:01:56]} 28. Kf1 {[%clk 0:00:26]}  Rf2+ {[%clk 0:01:56]} 29. Kg1 {[%clk 0:00:24]}  Nf3+ {[%clk 0:01:57]} 30. Kh1 {[%clk 0:00:16]}  g2# {[%clk 0:01:58]} 0-1

[Event "December 5 Late 2023"]
[Site "https://www.chess.com"]
[Date "2023.12.05"]
[Round "3"]
[White "Degtiarev, Evgeny"]
[Black "Martins, Vinicius Tine"]
[Result "0-1"]
[Board "138"]
[TimeControl "180+1"]
[WhiteFideId "4149610"]
[BlackFideId "2112884"]
[WhiteElo "2353"]
[BlackElo "2640"]
[WhiteTeam "GER"]
[BlackTeam "BRA"]
[WhiteClock "0:01:07"]
[BlackClock "0:01:20"]

1. d4 {[%clk 0:02:58]}  Nf6 {[%clk 0:02:20]} 2. c4 {[%clk 0:02:59]}  d6 {[%clk 0:02:20]} 3. Nc3 {[%clk 0:02:53]}  g6 {[%clk 0:02:18]} 4. e4 {[%clk 0:02:52]}  Bg7 {[%clk 0:02:18]} 5. h3 {[%clk 0:02:51]}  O-O {[%clk 0:02:18]} 6. Bg5 {[%clk 0:02:50]}  c5 {[%clk 0:02:17]} 7. d5 {[%clk 0:02:50]}  e6 {[%clk 0:02:14]} 8. Bd3 {[%clk 0:02:37]}  exd5 {[%clk 0:02:13]} 9. exd5 {[%clk 0:02:38]}  Re8+ {[%clk 0:02:12]} 10. Nge2 {[%clk 0:02:39]}  h6 {[%clk 0:02:09]} 11. Be3 {[%clk 0:02:36]}  Nbd7 {[%clk 0:02:06]} 12. Qd2 {[%clk 0:02:36]}  Kh7 {[%clk 0:02:05]} 13. O-O {[%clk 0:02:01]}  Ne5 {[%clk 0:02:03]} 14. Ng3 {[%clk 0:02:01]}  Bxh3 {[%clk 0:01:57]} 15. f4 {[%clk 0:02:01]}  Nxd3 {[%clk 0:01:56]} 16. Qxd3 {[%clk 0:02:02]}  Bd7 {[%clk 0:01:38]} 17. f5 {[%clk 0:01:49]}  Rxe3 {[%clk 0:01:21]} 18. Qxe3 {[%clk 0:01:07]}  Ng4 {[%clk 0:01:20]} 0-1

[Event "December 5 Late 2023"]
[Site "https://www.chess.com"]
[Date "2023.12.05"]
[Round "3"]
[White "Gerbelli Neto, Eduardo"]
[Black "Janaszak, Dawid"]
[Result "0-1"]
[Board "139"]
[TimeControl "180+1"]
[WhiteFideId "2103281"]
[BlackFideId "1119206"]
[WhiteElo "2326"]
[BlackElo "2575"]
[WhiteTeam "BRA"]
[BlackTeam "POL"]
[WhiteClock "0:00:04"]
[BlackClock "0:00:30"]

1. e4 {[%clk 0:03:00]}  c5 {[%clk 0:02:59]} 2. Nc3 {[%clk 0:02:58]}  Nc6 {[%clk 0:02:58]} 3. f4 {[%clk 0:02:58]}  e6 {[%clk 0:02:56]} 4. Nf3 {[%clk 0:02:58]}  d5 {[%clk 0:02:56]} 5. Bb5 {[%clk 0:02:57]}  dxe4 {[%clk 0:02:55]} 6. Bxc6+ {[%clk 0:02:56]}  bxc6 {[%clk 0:02:56]} 7. Nxe4 {[%clk 0:02:57]}  Nf6 {[%clk 0:02:56]} 8. d3 {[%clk 0:02:57]}  c4 {[%clk 0:02:55]} 9. Nxf6+ {[%clk 0:02:50]}  Qxf6 {[%clk 0:02:55]} 10. dxc4 {[%clk 0:02:50]}  Bc5 {[%clk 0:02:55]} 11. Qe2 {[%clk 0:02:49]}  Ba6 {[%clk 0:02:51]} 12. c3 {[%clk 0:02:38]}  O-O {[%clk 0:02:41]} 13. Ne5 {[%clk 0:02:37]}  Qh4+ {[%clk 0:02:35]} 14. g3 {[%clk 0:02:34]}  Qh3 {[%clk 0:02:35]} 15. Nd7 {[%clk 0:01:59]}  Bb6 {[%clk 0:02:13]} 16. Nxf8 {[%clk 0:01:56]}  Rxf8 {[%clk 0:02:13]} 17. b3 {[%clk 0:01:37]}  Rd8 {[%clk 0:02:12]} 18. Be3 {[%clk 0:01:36]}  Ba5 {[%clk 0:01:49]} 19. Bd2 {[%clk 0:01:29]}  c5 {[%clk 0:01:38]} 20. O-O-O {[%clk 0:01:25]}  Bb7 {[%clk 0:01:37]} 21. Rhe1 {[%clk 0:01:23]}  h6 {[%clk 0:01:36]} 22. Be3 {[%clk 0:01:18]}  Rc8 {[%clk 0:01:36]} 23. Kb2 {[%clk 0:01:10]}  Qf5 {[%clk 0:01:36]} 24. g4 {[%clk 0:01:06]}  Qg6 {[%clk 0:01:34]} 25. f5 {[%clk 0:01:00]}  exf5 {[%clk 0:01:32]} 26. gxf5 {[%clk 0:01:01]}  Qxf5 {[%clk 0:01:32]} 27. Rf1 {[%clk 0:01:00]}  Qe5 {[%clk 0:01:32]} 28. Rc1 {[%clk 0:00:41]}  Re8 {[%clk 0:01:31]} 29. Rfe1 {[%clk 0:00:39]}  Re6 {[%clk 0:01:17]} 30. Qf2 {[%clk 0:00:39]}  Rf6 {[%clk 0:01:14]} 31. Qd2 {[%clk 0:00:38]}  Rd6 {[%clk 0:01:13]} 32. Qe2 {[%clk 0:00:29]}  Re6 {[%clk 0:01:10]} 33. Qg4 {[%clk 0:00:20]}  Qxh2+ {[%clk 0:01:05]} 34. Re2 {[%clk 0:00:19]}  Qe5 {[%clk 0:01:04]} 35. Rcc2 {[%clk 0:00:10]}  Rg6 {[%clk 0:01:03]} 36. Qf4 {[%clk 0:00:10]}  Re6 {[%clk 0:00:46]} 37. Qxe5 {[%clk 0:00:10]}  Rxe5 {[%clk 0:00:47]} 38. Bf4 {[%clk 0:00:10]}  Rf5 {[%clk 0:00:47]} 39. Bd6 {[%clk 0:00:09]}  Bb6 {[%clk 0:00:39]} 40. Re8+ {[%clk 0:00:09]}  Kh7 {[%clk 0:00:39]} 41. Re5 {[%clk 0:00:08]}  Bc8 {[%clk 0:00:34]} 42. Rxf5 {[%clk 0:00:06]}  Bxf5 {[%clk 0:00:35]} 43. Rf2 {[%clk 0:00:07]}  Kg6 {[%clk 0:00:35]} 44. a3 {[%clk 0:00:05]}  a5 {[%clk 0:00:33]} 45. Re2 {[%clk 0:00:05]}  h5 {[%clk 0:00:32]} 46. Re7 {[%clk 0:00:05]}  Bd8 {[%clk 0:00:32]} 47. Re8 {[%clk 0:00:04]}  Bf6 {[%clk 0:00:32]} 48. Bxc5 {[%clk 0:00:04]}  h4 {[%clk 0:00:33]} 49. Bd4 {[%clk 0:00:04]}  h3 {[%clk 0:00:33]} 50. Rh8 {[%clk 0:00:04]}  Bg5 {[%clk 0:00:32]} 51. Rg8 {[%clk 0:00:04]}  f6 {[%clk 0:00:32]} 52. Rh8 {[%clk 0:00:04]}  Bh6 {[%clk 0:00:31]} 53. c5 {[%clk 0:00:04]}  h2 {[%clk 0:00:31]} 54. c6 {[%clk 0:00:04]}  h1=Q {[%clk 0:00:31]} 55. c7 {[%clk 0:00:05]}  Qc1+ {[%clk 0:00:30]} 56. Ka2 {[%clk 0:00:04]}  Qb1# {[%clk 0:00:30]} 0-1

[Event "December 5 Late 2023"]
[Site "https://www.chess.com"]
[Date "2023.12.05"]
[Round "3"]
[White "Stevens, Matthew"]
[Black "Erzhanov, Arman"]
[Result "0-1"]
[Board "140"]
[TimeControl "180+1"]
[WhiteFideId "2067633"]
[BlackFideId "4138821"]
[WhiteElo "2345"]
[BlackElo "2523"]
[WhiteTeam "USA"]
[BlackTeam "KAZ"]
[WhiteClock "0:00:00"]
[BlackClock "0:00:21"]

1. d4 {[%clk 0:03:00]}  d6 {[%clk 0:02:58]} 2. Nf3 {[%clk 0:02:56]}  Bg4 {[%clk 0:02:57]} 3. e3 {[%clk 0:02:42]}  Nf6 {[%clk 0:02:57]} 4. h3 {[%clk 0:02:39]}  Bh5 {[%clk 0:02:57]} 5. c4 {[%clk 0:02:39]}  h6 {[%clk 0:02:56]} 6. Bd3 {[%clk 0:02:37]}  e6 {[%clk 0:02:56]} 7. g4 {[%clk 0:02:30]}  Bg6 {[%clk 0:02:55]} 8. Bxg6 {[%clk 0:02:31]}  fxg6 {[%clk 0:02:56]} 9. Qc2 {[%clk 0:02:29]}  g5 {[%clk 0:02:50]} 10. Qg6+ {[%clk 0:02:25]}  Kd7 {[%clk 0:02:50]} 11. Nc3 {[%clk 0:02:25]}  Qe8 {[%clk 0:02:49]} 12. Qc2 {[%clk 0:02:23]}  Nc6 {[%clk 0:02:49]} 13. d5 {[%clk 0:02:22]}  Ne5 {[%clk 0:02:44]} 14. Nd4 {[%clk 0:02:06]}  exd5 {[%clk 0:02:42]} 15. Qf5+ {[%clk 0:02:01]}  Ke7 {[%clk 0:02:32]} 16. cxd5 {[%clk 0:01:43]}  Qd7 {[%clk 0:02:24]} 17. Qc2 {[%clk 0:01:35]}  c6 {[%clk 0:02:08]} 18. dxc6 {[%clk 0:01:20]}  bxc6 {[%clk 0:02:09]} 19. Bd2 {[%clk 0:01:19]}  Rb8 {[%clk 0:02:06]} 20. O-O-O {[%clk 0:01:18]}  Kf7 {[%clk 0:02:04]} 21. Ne4 {[%clk 0:01:11]}  d5 {[%clk 0:01:56]} 22. Nxf6 {[%clk 0:01:10]}  gxf6 {[%clk 0:01:56]} 23. Bc3 {[%clk 0:01:08]}  Nc4 {[%clk 0:01:52]} 24. Nf5 {[%clk 0:00:59]}  Bb4 {[%clk 0:01:46]} 25. Bxb4 {[%clk 0:00:53]}  Rxb4 {[%clk 0:01:44]} 26. b3 {[%clk 0:00:54]}  Nd6 {[%clk 0:01:40]} 27. Qc5 {[%clk 0:00:47]}  Nxf5 {[%clk 0:01:31]} 28. Qxb4 {[%clk 0:00:46]}  Nd6 {[%clk 0:01:31]} 29. e4 {[%clk 0:00:42]}  Rb8 {[%clk 0:01:29]} 30. Qa4 {[%clk 0:00:37]}  Qc7 {[%clk 0:01:00]} 31. f3 {[%clk 0:00:17]}  Nb5 {[%clk 0:00:55]} 32. exd5 {[%clk 0:00:08]}  cxd5+ {[%clk 0:00:55]} 33. Kb2 {[%clk 0:00:06]}  Nc3 {[%clk 0:00:49]} 34. Qd4 {[%clk 0:00:04]}  Nxd1+ {[%clk 0:00:48]} 35. Rxd1 {[%clk 0:00:05]}  Rb5 {[%clk 0:00:46]} 36. Rc1 {[%clk 0:00:04]}  Qd7 {[%clk 0:00:44]} 37. Rc5 {[%clk 0:00:04]}  Rxc5 {[%clk 0:00:44]} 38. Qxc5 {[%clk 0:00:05]}  Ke6 {[%clk 0:00:43]} 39. Kc2 {[%clk 0:00:05]}  Qb7 {[%clk 0:00:41]} 40. Kd2 {[%clk 0:00:04]}  Qa6 {[%clk 0:00:41]} 41. Qe3+ {[%clk 0:00:04]}  Kf7 {[%clk 0:00:41]} 42. a4 {[%clk 0:00:05]}  Qa5+ {[%clk 0:00:40]} 43. Qc3 {[%clk 0:00:05]}  Qb6 {[%clk 0:00:37]} 44. Qd3 {[%clk 0:00:05]}  Qf2+ {[%clk 0:00:36]} 45. Kc3 {[%clk 0:00:06]}  Qc5+ {[%clk 0:00:34]} 46. Kb2 {[%clk 0:00:06]}  Ke6 {[%clk 0:00:32]} 47. Qc3 {[%clk 0:00:06]}  Qf2+ {[%clk 0:00:32]} 48. Ka3 {[%clk 0:00:05]}  Qb6 {[%clk 0:00:31]} 49. b4 {[%clk 0:00:05]}  d4 {[%clk 0:00:30]} 50. Qc4+ {[%clk 0:00:05]}  Ke5 {[%clk 0:00:31]} 51. Qd3 {[%clk 0:00:05]}  Kf4 {[%clk 0:00:30]} 52. Qe4+ {[%clk 0:00:05]}  Kg3 {[%clk 0:00:30]} 53. a5 {[%clk 0:00:06]}  Qd6 {[%clk 0:00:30]} 54. Qd3 {[%clk 0:00:06]}  Kxh3 {[%clk 0:00:29]} 55. Ka4 {[%clk 0:00:07]}  Kg3 {[%clk 0:00:29]} 56. b5 {[%clk 0:00:07]}  Qc5 {[%clk 0:00:25]} 57. Kb3 {[%clk 0:00:06]}  Kh4 {[%clk 0:00:24]} 58. Qc4 {[%clk 0:00:07]}  Qd6 {[%clk 0:00:22]} 59. Qb4 {[%clk 0:00:06]}  Qd5+ {[%clk 0:00:22]} 60. Qc4 {[%clk 0:00:06]}  Qxf3+ {[%clk 0:00:22]} 61. Ka4 {[%clk 0:00:06]}  d3 {[%clk 0:00:20]} 62. b6 {[%clk 0:00:06]}  axb6 {[%clk 0:00:21]} 63. axb6 {[%clk 0:00:00]}  d2 {[%clk 0:00:21]} 0-1

[Event "December 5 Late 2023"]
[Site "https://www.chess.com"]
[Date "2023.12.05"]
[Round "3"]
[White "Sarkar, Justin"]
[Black "Kotyk, Michael"]
[Result "0-1"]
[Board "141"]
[TimeControl "180+1"]
[WhiteFideId "2010011"]
[BlackFideId "16214501"]
[WhiteElo "2289"]
[BlackElo "2508"]
[WhiteTeam "USA"]
[BlackTeam "GER"]
[WhiteClock "0:00:00"]
[BlackClock "0:00:36"]

1. d4 {[%clk 0:02:35]}  Na6 {[%clk 0:03:00]} 2. e4 {[%clk 0:02:31]}  c6 {[%clk 0:03:00]} 3. Nf3 {[%clk 0:02:28]}  d5 {[%clk 0:02:58]} 4. e5 {[%clk 0:02:25]}  Bg4 {[%clk 0:02:54]} 5. h3 {[%clk 0:02:22]}  Bxf3 {[%clk 0:02:54]} 6. Qxf3 {[%clk 0:02:21]}  e6 {[%clk 0:02:51]} 7. c3 {[%clk 0:02:17]}  Nc7 {[%clk 0:02:50]} 8. Bd3 {[%clk 0:02:14]}  c5 {[%clk 0:02:49]} 9. O-O {[%clk 0:02:10]}  c4 {[%clk 0:02:36]} 10. Bc2 {[%clk 0:02:06]}  b5 {[%clk 0:02:36]} 11. Qg3 {[%clk 0:01:45]}  Ne7 {[%clk 0:02:23]} 12. Nd2 {[%clk 0:01:35]}  a5 {[%clk 0:02:21]} 13. Nf3 {[%clk 0:01:27]}  Qd7 {[%clk 0:02:12]} 14. Nh4 {[%clk 0:00:27]}  b4 {[%clk 0:02:09]} 15. b3 {[%clk 0:00:16]}  Nc6 {[%clk 0:01:53]} 16. bxc4 {[%clk 0:00:11]}  dxc4 {[%clk 0:01:54]} 17. Ba4 {[%clk 0:00:10]}  O-O-O {[%clk 0:01:50]} 18. Qf3 {[%clk 0:00:08]}  Nd5 {[%clk 0:01:49]} 19. Bd2 {[%clk 0:00:08]}  Kc7 {[%clk 0:01:44]} 20. g3 {[%clk 0:00:07]}  Rb8 {[%clk 0:01:32]} 21. Kh1 {[%clk 0:00:04]}  Nb6 {[%clk 0:01:27]} 22. Bb5 {[%clk 0:00:04]}  Qd5 {[%clk 0:01:23]} 23. Qxd5 {[%clk 0:00:03]}  Nxd5 {[%clk 0:01:24]} 24. Bxc4 {[%clk 0:00:03]}  bxc3 {[%clk 0:01:22]} 25. Bxd5 {[%clk 0:00:02]}  exd5 {[%clk 0:01:18]} 26. Bxc3 {[%clk 0:00:02]}  Bb4 {[%clk 0:01:18]} 27. Rfc1 {[%clk 0:00:01]}  Kd7 {[%clk 0:01:17]} 28. Nf5 {[%clk 0:00:01]}  g6 {[%clk 0:01:14]} 29. Ne3 {[%clk 0:00:01]}  Ke6 {[%clk 0:01:13]} 30. a3 {[%clk 0:00:02]}  Bxc3 {[%clk 0:01:13]} 31. Rxc3 {[%clk 0:00:02]}  Nxd4 {[%clk 0:01:13]} 32. Rd1 {[%clk 0:00:02]}  Nb5 {[%clk 0:00:56]} 33. Rc6+ {[%clk 0:00:02]}  Kd7 {[%clk 0:00:57]} 34. Rf6 {[%clk 0:00:02]}  d4 {[%clk 0:00:55]} 35. Nc4 {[%clk 0:00:01]}  Ke7 {[%clk 0:00:53]} 36. a4 {[%clk 0:00:02]}  Nc3 {[%clk 0:00:50]} 37. Rxd4 {[%clk 0:00:01]}  Rb4 {[%clk 0:00:45]} 38. Rdf4 {[%clk 0:00:01]}  Rf8 {[%clk 0:00:39]} 39. e6 {[%clk 0:00:00]}  Rxc4 {[%clk 0:00:36]} 0-1